bitfinex-derivatives/quotes_ETHF0:USTF0_20251210
["timestamp","ask_amount","ask_price","bid_price","bid_amount"]
[1765375108744,2.18555585,3335.8,3335.7,3.913]
[1765375109145,2.18555585,3335.8,3335.7,4.6417]
[1765375109349,2.18555585,3335.8,3335.7,3.913]
[1765375110142,3.50317005,3335.8,3335.7,4.6417]
[1765375110748,0.78885585,3335.8,3335.7,4.6417]
[1765375110943,1.3963,3336.0,3335.9,1.4339]
[1765375111247,2.21397161,3336.0,3335.9,1.4339]
[1765375111448,2.21397161,3336.0,3335.9,0.7052]
[1765375112446,2.21397161,3336.0,3335.6,0.1499]
[1765375112447,2.62347161,3336.0,3335.6,0.1499]
[1765375112651,1.3963,3335.7,3335.6,1.5838]
[1765375112949,2.21397161,3335.7,3335.6,1.5838]
[1765375113348,2.21397161,3335.7,3335.6,0.8551]
[1765375113551,1.3963,3335.3,3335.2,3.21229944]
[1765375113850,1.3963,3335.3,3335.2,3.91749944]
[1765375113851,3.53158581,3335.3,3335.2,3.91749944]
[1765375114355,3.53158581,3335.3,3335.2,4.64619944]
[1765375114850,3.53158581,3335.3,3335.2,3.21229944]
[1765375115046,3.53158581,3335.3,3335.2,3.91749944]
[1765375115251,3.53158581,3335.3,3335.2,4.64619944]
[1765375117354,3.53158581,3335.3,3335.2,1.43839944]
[1765375117753,3.53158581,3335.3,3335.2,0.00449944]
[1765375118357,3.53158581,3335.3,3335.2,0.70969944]
[1765375118856,3.53158581,3335.3,3335.2,0.00449944]
[1765375124662,3.50008103,3335.3,3335.2,0.00449944]
[1765375128260,2.21397161,3335.3,3335.2,0.00449944]
[1765375128462,2.21397161,3335.3,3335.2,1.43839944]
[1765375131860,2.21397161,3335.3,3335.2,0.70969944]
[1765375132062,2.21397161,3335.3,3335.2,0.00449944]
[1765375134366,2.21397161,3335.3,3335.2,0.70969944]
[1765375134665,2.21397161,3335.3,3335.2,1.43839944]
[1765375134864,2.21397161,3335.3,3335.2,0.70969944]
[1765375136865,2.21397161,3335.3,3335.2,0.00449944]
[1765375137267,2.21397161,3335.3,3335.2,1.43839944]
[1765375138066,2.21397161,3335.3,3335.2,0.70969944]
[1765375138568,2.21397161,3335.3,3335.2,1.37919944]
[1765375139263,1.51617161,3335.3,3335.2,1.37919944]
[1765375139467,2.22457161,3335.3,3335.2,1.37919944]
[1765375140769,0.81767161,3335.3,3335.2,1.37919944]
[1765375141663,1.50807161,3335.3,3335.2,1.37919944]
[1765375143171,2.21647161,3335.3,3335.2,1.37919944]
[1765375145167,2.21647161,3335.3,3335.2,0.00449944]
[1765375145369,2.21647161,3335.3,3335.2,1.39739944]
[1765375145673,1.50807161,3335.3,3335.2,1.39739944]
[1765375146675,0.81767161,3335.3,3335.2,1.39739944]
[1765375147076,1.50807161,3335.3,3335.2,1.39739944]
[1765375147374,0.81767161,3335.3,3335.2,1.54730944]
[1765375148077,0.81767161,3335.3,3335.2,4.75510944]
[1765375149074,2.976946,3335.9,3335.8,0.7075]
[1765375149273,0.6795,3335.6,3335.5,1.9757]
[1765375149873,4.9834,3336.0,3335.9,0.7075]
[1765375153474,1.3614,3335.6,3335.5,0.8574]
[1765375153875,1.3614,3335.6,3335.5,1.5496]
[1765375154075,1.3614,3335.6,3335.5,0.1499]
[1765375154985,1.3614,3335.3,3335.2,3.91979944]
[1765375155276,1.3614,3335.3,3335.2,4.61199944]
[1765375158086,1.3614,3335.3,3335.2,1.40419944]
[1765375158690,1.28610942,3335.7,3335.2,1.40419944]
[1765375158887,2.64750942,3335.7,3335.6,0.7075]
[1765375159287,3.622,3336.0,3335.6,1.3997]
[1765375159487,1.66724449,3335.9,3335.8,1.3997]
[1765375160191,1.66724449,3335.9,3335.8,0.7075]
[1765375160589,1.3614,3335.9,3335.8,1.3997]
[1765375160787,0.6795,3335.9,3335.8,1.3997]
[1765375160993,2.17660648,3335.9,3335.8,1.3997]
[1765375162295,1.49470648,3335.9,3335.8,1.3997]
[1765375162994,2.17660648,3335.9,3335.8,1.3997]
[1765375163595,1.49470648,3335.9,3335.8,1.3997]
[1765375163900,2.17660648,3335.9,3335.8,1.3997]
[1765375169089,2.17660648,3335.9,3335.8,0.7075]
[1765375169295,1.4639,3335.8,3335.7,3.9305]
[1765375169495,2.27910648,3335.8,3335.7,3.9305]
[1765375169799,2.27910648,3335.8,3335.7,4.6208]
[1765375171500,0.81520648,3335.8,3335.7,4.6208]
[1765375171804,2.30051329,3336.2,3336.1,0.7227]
[1765375172004,3.58662277,3336.2,3335.7,3.2078]
[1765375172206,2.75000942,3336.2,3336.1,0.7227]
[1765375172403,0.7323,3335.8,3335.7,4.6208]
[1765375172705,1.56895475,3335.8,3335.7,4.6208]
[1765375173609,2.30055475,3335.8,3335.7,4.6208]
[1765375176105,2.30055475,3335.8,3335.7,3.2078]
[1765375176506,2.30055475,3335.8,3335.7,3.9305]
[1765375176707,2.30055475,3335.8,3335.7,4.6208]
[1765375177708,2.30055475,3335.8,3335.7,1.413]
[1765375177906,2.30055475,3335.8,3335.7,0.7227]
[1765375178314,2.30055475,3335.8,3335.7,1.413]
[1765375178613,2.30055475,3335.8,3335.7,0.7227]
[1765375180306,1.4639,3335.7,3335.6,0.1499]
[1765375180507,3.58666417,3335.7,3335.6,0.1499]
[1765375181912,3.59745017,3335.7,3335.6,0.1499]
[1765375183510,3.59745017,3335.7,3335.6,0.8726]
[1765375184517,3.59745017,3335.7,3335.6,0.1499]
[1765375185418,1.4639,3335.4,3335.3,3.9305]
[1765375185617,2.30055475,3335.4,3335.3,3.9305]
[1765375185917,2.31134075,3335.4,3335.3,4.6208]
[1765375186820,3.63005632,3335.4,3335.3,4.6208]
[1765375187817,1.57974075,3335.4,3335.3,4.6208]
[1765375188017,2.89845632,3335.4,3335.3,4.6208]
[1765375188318,3.63005632,3335.4,3335.3,4.6208]
[1765375189318,2.31134075,3335.4,3335.3,4.6208]
[1765375189518,3.63005632,3335.4,3335.3,4.6208]
[1765375190111,2.31134075,3335.4,3335.3,4.6208]
[1765375190311,3.63005632,3335.4,3335.3,4.6208]
[1765375193016,3.63005632,3335.4,3335.3,3.9305]
[1765375193518,3.63005632,3335.4,3335.3,4.6208]
[1765375196112,3.63005632,3335.4,3335.3,3.9305]
[1765375196827,3.63005632,3335.4,3335.3,3.2078]
[1765375197322,3.63005632,3335.4,3335.3,3.9305]
[1765375197913,3.63005632,3335.4,3335.3,4.6208]
[1765375198425,2.31134075,3335.4,3335.3,4.6208]
[1765375198624,3.63005632,3335.4,3335.3,4.6208]
[1765375200422,3.63005632,3335.4,3335.2,0.00449944]
[1765375200618,3.55887032,3335.3,3335.2,0.00449944]
[1765375200925,5.49620841,3335.3,3335.2,0.00449944]
[1765375201323,4.17749284,3335.3,3335.2,0.00449944]
[1765375201522,3.88056747,3335.3,3335.2,1.40649944]
[1765375201726,0.84744075,3335.3,3335.2,1.40649944]
[1765375202424,0.010786,3335.3,3335.2,1.40649944]
[1765375203222,2.25094075,3335.3,3335.2,0.69659944]
[1765375203423,2.16615632,3335.3,3335.2,1.40649944]
[1765375203627,0.84744075,3335.3,3335.2,1.40649944]
[1765375203828,0.010786,3335.3,3335.2,1.55640944]
[1765375204831,2.25094075,3335.3,3335.2,0.00449944]
[1765375205032,2.25094075,3335.3,3335.2,0.69659944]
[1765375205222,2.25094075,3335.3,3335.2,0.00449944]
[1765375205522,3.87979746,3335.3,3335.2,0.00449944]
[1765375205918,1.8343,3335.0,3334.9,3.07860101]
[1765375206116,1.4035,3334.7,3334.6,0.14994]
[1765375206321,1.4035,3334.6,3334.5,3.2078]
[1765375206522,2.24015475,3334.6,3334.5,3.2078]
[1765375206935,2.24015475,3334.6,3334.5,2.88737947]
[1765375207134,2.25094075,3334.6,3334.5,2.88737947]
[1765375207632,1.8343,3334.5,3334.4,0.00267948]
[1765375207830,3.98967032,3334.5,3334.4,0.00267948]
[1765375208231,4.00045632,3334.5,3334.4,0.00267948]
[1765375208534,4.00045632,3334.5,3334.4,0.69477948]
[1765375208730,2.68174075,3334.5,3334.4,0.69477948]
[1765375209143,2.25094075,3334.5,3334.4,1.35977948]
[1765375210037,0.84744075,3334.5,3334.4,1.35977948]
[1765375210237,0.010786,3334.5,3334.4,1.35977948]
[1765375210437,2.70140157,3334.5,3334.4,0.69477948]
[1765375210637,3.53805632,3334.5,3334.4,0.69477948]
[1765375211134,2.21934075,3334.5,3334.4,1.35977948]
[1765375211540,0.84744075,3334.5,3334.4,1.35977948]
[1765375211938,0.010786,3334.5,3334.4,1.35977948]
[1765375212331,0.70239592,3334.7,3334.6,1.3563]
[1765375212535,3.2078,3335.8,3335.2,1.3563]
[1765375212731,0.6892,3335.3,3335.2,1.3563]
[1765375213332,1.31871557,3335.5,3335.2,1.3563]
[1765375213538,1.37639944,3335.7,3335.6,1.3563]
[1765375214444,0.00449944,3335.7,3335.6,1.3563]
[1765375214841,0.6892,3335.6,3335.5,1.7642]
[1765375215249,0.00449944,3335.7,3335.6,1.3563]
[1765375215747,0.69369944,3335.7,3335.6,1.3563]
[1765375215948,1.37639944,3335.7,3335.6,1.3563]
[1765375217651,0.69369944,3335.7,3335.6,1.3563]
[1765375218040,0.00449944,3335.7,3335.6,1.3563]
[1765375218651,0.69369944,3335.7,3335.6,1.3563]
[1765375218846,0.69369944,3335.7,3335.6,2.67501557]
[1765375218847,0.00449944,3335.7,3335.6,2.67501557]
[1765375219047,0.00449944,3335.7,3335.6,2.82491557]
[1765375219350,0.00235763,3336.3,3335.6,2.82491557]
[1765375219351,0.00235763,3336.3,3336.2,1.3563]
[1765375219947,0.00235763,3336.3,3336.0,1.7642]
[1765375219948,0.6892,3336.1,3336.0,1.7642]
[1765375220249,0.6892,3336.1,3336.0,4.972]
[1765375220555,0.00235763,3336.3,3336.2,1.3563]
[1765375221847,0.6892,3337.0,3336.9,1.3563]
[1765375222048,1.3719,3337.0,3336.9,1.3563]
[1765375223055,1.37450039,3337.0,3336.9,1.36006527]
[1765375224350,0.69180039,3337.0,3336.9,1.36006527]
[1765375224558,2.92151596,3337.0,3336.9,0.00376527]
[1765375224954,3.74248341,3337.0,3336.9,0.00376527]
[1765375225457,6.95028341,3337.0,3336.9,0.00376527]
[1765375226652,5.63156784,3337.0,3336.9,0.00376527]
[1765375226952,8.26899898,3337.0,3336.9,0.00376527]
[1765375227157,1.3719,3336.3,3336.2,4.5641]
[1765375228050,1.3719,3336.3,3336.2,4.56626841]
[1765375228554,1.3719,3336.3,3336.2,3.20996841]
[1765375228753,1.3719,3336.3,3336.2,0.00216841]
[1765375229052,1.4003,3335.8,3335.7,0.00449944]
[1765375229253,0.7251,3335.3,3335.2,4.6228]
[1765375230254,1.4003,3335.3,3335.2,4.6249208]
[1765375230663,1.40479944,3335.6,3335.5,0.7028]
[1765375230862,1.40479944,3335.6,3335.5,1.8299]
[1765375231056,1.40479944,3335.6,3335.5,0.7028]
[1765375231255,2.90325015,3335.6,3335.5,0.7028]
[1765375231959,2.90325015,3335.6,3335.5,1.415]
[1765375232159,0.72959944,3335.6,3335.5,1.8299]
[1765375232360,1.40479944,3335.6,3335.5,1.8299]
[1765375233049,0.72959944,3335.6,3335.5,1.8299]
[1765375233253,1.40479944,3335.6,3335.5,1.8299]
[1765375233655,0.00449944,3335.6,3335.5,1.8299]
[1765375233861,1.40479944,3335.6,3335.5,1.8299]
[1765375234258,0.00449944,3335.6,3335.5,1.8299]
[1765375234663,0.72959944,3335.6,3335.5,1.8299]
[1765375235157,0.00449944,3335.6,3335.5,1.8299]
[1765375236264,0.72959944,3335.6,3335.5,1.1177]
[1765375236460,2.90325015,3335.6,3335.5,1.415]
[1765375236857,0.00449944,3335.6,3335.5,1.8299]
[1765375237162,0.72959944,3335.6,3335.5,1.8299]
[1765375238266,0.00449944,3335.6,3335.5,1.8299]
[1765375238659,2.90325015,3335.6,3335.5,1.415]
[1765375238861,2.90325015,3335.6,3335.5,1.8299]
[1765375239265,0.72959944,3335.6,3335.5,1.8299]
[1765375239465,0.00449944,3335.6,3335.5,1.8299]
[1765375239968,1.40479944,3335.6,3335.5,1.8299]
[1765375240165,0.72959944,3335.6,3335.5,1.8299]
[1765375240565,1.40479944,3335.6,3335.5,1.8299]
[1765375241167,0.72959944,3335.6,3335.5,1.8299]
[1765375241363,1.40479944,3335.6,3335.5,1.8299]
[1765375242368,0.72959944,3335.6,3335.5,1.8299]
[1765375242568,1.40479944,3335.6,3335.5,1.8299]
[1765375243066,1.4003,3335.3,3335.2,0.0021208]
[1765375243371,6.93060904,3335.3,3335.2,0.0021208]
[1765375244964,6.93060904,3335.3,3334.9,0.00449944]
[1765375244965,1.8255,3335.0,3334.9,0.00449944]
[1765375245165,5.64645975,3335.0,3334.9,0.00449944]
[1765375245969,4.14800904,3335.0,3334.9,0.00771109]
[1765375247271,5.64645975,3335.0,3334.9,0.00771109]
[1765375248674,4.11153015,3335.0,3334.9,0.00771109]
[1765375252475,4.11153015,3335.0,3334.2,0.14996]
[1765375252674,1.4003,3334.3,3334.2,0.85276]
[1765375252875,0.7251,3334.3,3334.2,1.56496]
[1765375253273,1.4003,3334.3,3334.2,1.56496]
[1765375253475,1.4003,3334.3,3334.2,1.56843687]
[1765375253678,1.40271617,3334.3,3334.2,1.56843687]
[1765375253977,1.40271617,3334.3,3334.2,0.00347687]
[1765375254565,2.25586858,3334.3,3334.2,0.00347687]
[1765375254973,2.25586858,3334.3,3334.2,1.41847687]
[1765375255178,0.00241617,3334.3,3334.2,1.41847687]
[1765375255780,0.72751617,3334.3,3334.2,1.41847687]
[1765375255976,1.40271617,3334.3,3334.2,1.41847687]
[1765375256180,1.40271617,3334.3,3334.2,0.00347687]
[1765375256476,2.25630665,3334.3,3334.2,0.00347687]
[1765375256680,2.25630665,3334.3,3334.2,0.70627687]
[1765375257082,2.25630665,3334.3,3334.2,0.00347687]
[1765375259377,5.46410665,3334.3,3334.2,0.00347687]
[1765375260181,1.8468,3334.0,3333.9,0.00449944]
[1765375260375,4.1623623,3334.0,3333.9,0.00449944]
[1765375260575,4.1623623,3334.0,3333.9,0.69369944]
[1765375260781,4.1623623,3334.0,3333.9,0.00449944]
[1765375261171,4.1623623,3334.0,3333.9,0.00741457]
[1765375261877,4.1623623,3334.0,3333.0,0.56491]
[1765375262074,0.6833,3333.1,3333.0,1.92091]
[1765375262283,2.14527182,3333.3,3333.2,1.356]
[1765375262582,1.3793,3333.3,3333.2,1.356]
[1765375262783,2.23590723,3333.3,3333.2,1.35889927]
[1765375263379,0.68779944,3333.6,3333.5,1.7855]
[1765375263581,2.24008055,3333.6,3333.5,1.7855]
[1765375263987,2.24008055,3333.6,3333.5,0.6892]
[1765375264187,2.24008055,3333.6,3333.5,1.356]
[1765375264682,2.24008055,3333.6,3333.5,0.6892]
[1765375264985,2.24008055,3333.6,3333.2,1.35889927]
[1765375264986,0.6833,3333.3,3333.2,1.35889927]
[1765375266388,1.3793,3333.3,3333.2,1.35889927]
[1765375266879,2.23516769,3333.3,3333.2,1.35889927]
[1765375267284,0.00449944,3333.6,3333.2,1.35889927]
[1765375267285,0.00449944,3333.6,3333.5,1.7855]
[1765375268589,0.00449944,3333.6,3333.5,1.93549]
[1765375273595,0.00449944,3333.6,3333.5,1.92969]
[1765375274189,0.85964708,3333.6,3333.5,1.92969]
[1765375274395,0.00449944,3333.6,3333.5,1.92969]
[1765375275490,0.67759944,3333.6,3333.5,1.92969]
[1765375275694,1.53274708,3333.6,3333.5,1.92969]
[1765375275988,1.61796217,3334.3,3333.5,1.92969]
[1765375275989,1.39021617,3334.3,3334.2,1.3837]
[1765375276795,1.3878,3333.3,3333.2,0.68579927]
[1765375276993,2.84977182,3333.3,3333.2,0.68579927]
[1765375277397,2.84977182,3333.3,3333.2,1.35589927]
[1765375277796,6.63067652,3333.5,3333.4,1.353]
[1765375278203,4.3019,3333.5,3333.4,1.353]
[1765375278393,5.0166,3333.5,3333.4,1.353]
[1765375278794,1.3878,3333.3,3333.2,0.68579927]
[1765375279392,1.3878,3333.3,3333.2,0.00289927]
[1765375279591,1.3878,3333.3,3333.2,0.68579927]
[1765375280196,1.3878,3333.3,3333.2,1.35589927]
[1765375280699,1.3878,3333.3,3333.2,0.68579927]
[1765375281598,1.3878,3333.3,3333.2,0.00289927]
[1765375283197,1.3878,3333.3,3333.2,0.68579927]
[1765375283700,1.3878,3333.3,3333.2,0.00289927]
[1765375284094,1.3878,3332.6,3332.5,4.5608]
[1765375284900,1.46197182,3332.8,3332.1,4.5608]
[1765375284901,1.3878,3332.2,3332.1,4.5608]
[1765375285097,1.3878,3332.2,3332.1,4.56452884]
[1765375285299,0.6731,3332.2,3332.1,4.56452884]
[1765375286101,1.3878,3332.2,3332.1,4.56452884]
[1765375286701,0.6731,3332.2,3332.1,4.56452884]
[1765375287400,2.84977182,3332.2,3332.1,0.68662884]
[1765375287905,3.71925241,3332.2,3332.1,0.68662884]
[1765375288101,1.3633,3331.9,3331.8,0.00449944]
[1765375288295,6.90255241,3331.9,3331.8,0.00449944]
[1765375289099,6.90639413,3331.9,3331.8,0.00793694]
[1765375290095,4.08112231,3331.9,3331.8,1.37413694]
[1765375290296,2.23662231,3331.9,3331.8,1.52420694]
[1765375290501,2.23662231,3331.9,3331.8,0.84110694]
[1765375290707,2.23662231,3331.9,3331.8,1.52420694]
[1765375291308,2.23662231,3331.9,3331.8,0.69103694]
[1765375291607,5.44442231,3331.9,3331.8,0.00793694]
[1765375291800,5.44442231,3331.9,3331.8,0.69103694]
[1765375292002,4.78022231,3331.9,3331.8,1.37413694]
[1765375292307,5.44739962,3331.9,3331.8,1.37413694]
[1765375292706,5.44739962,3331.9,3331.8,0.69103694]
[1765375292902,5.44739962,3331.9,3331.8,1.37413694]
[1765375293106,4.08409962,3331.9,3331.8,1.37413694]
[1765375293309,4.08409962,3331.9,3331.8,1.52420694]
[1765375293509,5.44739962,3331.9,3331.8,1.52420694]
[1765375294107,5.44739962,3331.9,3331.8,0.84110694]
[1765375294307,5.44739962,3331.9,3331.8,1.52420694]
[1765375295308,4.08409962,3331.9,3331.8,1.52420694]
[1765375297511,0.00449944,3332.5,3332.4,1.51624]
[1765375298511,0.00682068,3332.5,3332.4,1.51624]
[1765375300308,0.421,3333.0,3332.9,1.3662]
[1765375301317,0.42349911,3333.0,3332.9,1.3662]
[1765375301817,0.00249911,3333.0,3332.9,1.3662]
[1765375302013,0.00249911,3333.0,3332.9,1.51622]
[1765375302513,1.78169911,3333.0,3332.9,1.51622]
[1765375302721,0.41839911,3333.0,3332.9,1.51622]
[1765375303711,0.00249911,3333.0,3332.9,1.51622]
[1765375306718,1.11749911,3333.0,3332.9,1.51622]
[1765375307217,2.63659953,3333.0,3332.9,0.83312]
[1765375307818,2.63664699,3333.0,3332.9,1.51622]
[1765375308729,2.63664699,3333.0,3332.9,0.83312]
[1765375309537,2.63664699,3333.0,3332.9,1.51622]
[1765375311129,1.97244699,3333.0,3332.9,1.51622]
[1765375312138,1.27334699,3333.0,3332.9,1.51622]
[1765375312533,0.00249911,3333.0,3332.9,1.51622]
[1765375313434,1.78169911,3333.0,3332.9,0.15002]
[1765375313635,1.78169911,3333.0,3332.9,0.83312]
[1765375313636,2.63664699,3333.0,3332.9,0.83312]
[1765375313838,1.97244699,3333.0,3332.9,1.51622]
[1765375314226,2.63664699,3333.0,3332.9,0.15002]
[1765375314433,2.63664699,3333.0,3332.9,0.83312]
[1765375314644,1.7792,3332.5,3332.4,3.2078]
[1765375314831,1.7792,3332.5,3332.4,4.574]
[1765375315934,1.7792,3332.5,3332.4,3.8909]
[1765375316127,1.7792,3332.5,3332.4,4.574]
[1765375316330,1.115,3332.5,3332.4,4.574]
[1765375316637,1.115,3332.5,3332.4,6.22527252]
[1765375316937,0.4159,3332.5,3332.4,6.22527252]
[1765375317134,1.54446131,3332.9,3332.8,1.3662]
[1765375317338,2.20866131,3332.9,3332.8,1.3662]
[1765375317838,0.84536131,3332.9,3332.8,1.3662]
[1765375318032,1.10919911,3333.0,3332.9,1.3573]
[1765375318241,0.84667043,3333.0,3332.9,1.3573]
[1765375318437,0.00249911,3333.0,3332.9,1.3573]
[1765375319635,0.00249911,3333.0,3332.9,1.50732]
[1765375320542,1.12039911,3333.0,3332.9,1.50732]
[1765375320747,2.63227043,3333.0,3332.9,1.50732]
[1765375321743,0.40312143,3333.0,3332.9,1.50732]
[1765375322039,0.00449944,3333.3,3333.2,1.5073]
[1765375322338,1.36299944,3333.3,3333.2,1.5073]
[1765375322942,0.69765217,3333.3,3333.2,1.5073]
[1765375323441,1.36535217,3333.3,3333.2,1.5073]
[1765375323631,0.69765217,3333.3,3333.2,1.5073]
[1765375325144,1.36535217,3333.3,3333.2,1.5073]
[1765375325339,1.36535217,3333.3,3333.2,0.8338]
[1765375325545,4.57315217,3333.3,3333.2,0.15]
[1765375327545,4.57315217,3333.3,3333.2,1.5073]
[1765375327749,0.00685217,3333.3,3333.2,1.5073]
[1765375328546,1.36535217,3333.3,3333.2,0.15]
[1765375329744,1.36535217,3333.3,3333.2,1.5073]
[1765375333053,1.36535217,3333.3,3333.2,0.8338]
[1765375334154,2.17025344,3333.3,3333.2,1.5188]
[1765375336755,2.17025344,3333.3,3333.2,0.15]
[1765375337956,1.3643,3332.6,3332.5,4.72783]
[1765375338252,0.4205,3332.5,3331.8,0.15799694]
[1765375338557,1.3643,3331.9,3331.8,1.52799694]
[1765375343059,1.3643,3331.9,3331.8,1.52669694]
[1765375344059,0.4205,3332.0,3331.9,1.3674]
[1765375344462,1.8572,3332.0,3331.9,1.3674]
[1765375345263,1.8572,3332.0,3331.9,0.6837]
[1765375346664,1.8572,3332.0,3331.9,1.3605]
[1765375347263,0.4205,3332.0,3331.9,1.51056]
[1765375347664,1.0985,3332.0,3331.9,1.51056]
[1765375348254,1.7726,3332.0,3331.9,1.51056]
[1765375348854,1.7726,3332.0,3331.9,0.83376]
[1765375349564,1.7726,3332.0,3331.9,0.15006]
[1765375351763,1.3524,3331.9,3331.8,0.00793694]
[1765375351968,4.5602,3331.9,3331.8,0.00793694]
[1765375352169,5.37243776,3331.9,3331.8,0.00793694]
[1765375355065,5.37243776,3331.9,3331.8,0.69163694]
[1765375355369,5.37246223,3331.9,3331.8,1.36763694]
[1765375355559,5.37246223,3331.9,3331.8,0.00793694]
[1765375357967,5.37246223,3331.9,3331.8,3.694e-05]
[1765375358164,1.3524,3331.6,3331.5,0.15008]
[1765375359172,1.3524,3331.6,3331.5,0.15242897]
[1765375359475,1.3524,3331.6,3331.5,0.00234897]
[1765375360875,1.3524,3331.3,3331.2,0.00449944]
[1765375361071,1.7577,3330.5,3330.4,4.5772]
[1765375361277,1.7577,3330.5,3330.4,0.6934]
[1765375361570,1.3524,3330.3,3330.2,0.15014]
[1765375361967,1.35468306,3330.3,3330.2,0.00309528]
[1765375362173,1.3524,3330.1,3330.0,3.2078]
[1765375362371,2.85482215,3330.1,3330.0,3.2078]
[1765375362570,1.35468306,3330.3,3330.2,0.6934]
[1765375363171,1.3524,3330.1,3330.0,3.9012]
[1765375363374,1.3524,3330.1,3330.0,3.90411776]
[1765375363773,1.3524,3330.1,3330.0,4.58011776]
[1765375364572,0.00228306,3330.3,3330.2,1.3694]
[1765375364877,0.00228306,3330.3,3330.2,2.87182215]
[1765375365676,0.00228306,3330.3,3330.2,3.02196215]
[1765375372187,0.00449944,3330.6,3330.5,1.51953]
[1765375372383,0.00449944,3330.6,3330.5,6.22975215]
[1765375372688,0.00449944,3330.6,3330.5,6.40393838]
[1765375372888,0.00449944,3330.6,3330.5,6.19213838]
[1765375373089,0.00714835,3330.6,3330.5,6.19213838]
[1765375374088,0.00714835,3330.6,3330.5,6.40393838]
[1765375375883,0.00714835,3330.6,3330.5,12.40393838]
[1765375376090,1.8193,3331.5,3331.4,0.6677]
[1765375376482,2.63070781,3331.5,3331.4,0.6677]
[1765375377086,0.00340025,3331.5,3331.4,1.50609]
[1765375386500,1.13520025,3331.5,3331.4,1.50609]
[1765375386708,1.86770025,3331.5,3331.4,0.83459]
[1765375387897,0.00340025,3331.5,3331.4,1.50969]
[1765375388207,0.00340025,3331.5,3331.4,4.71749]
[1765375392305,1.86770025,3331.5,3331.4,4.04239]
[1765375392613,1.86770025,3331.5,3331.4,4.71749]
[1765375393015,1.13520025,3331.5,3331.4,4.71749]
[1765375393421,1.86770025,3331.5,3331.4,4.71749]
[1765375393814,1.86770025,3331.5,3331.4,3.35789]
[1765375394119,1.86770025,3331.5,3331.4,4.04239]
[1765375394821,1.86770025,3331.5,3331.4,4.71749]
[1765375395120,1.86770025,3331.5,3331.4,4.04239]
[1765375400224,1.86770025,3331.5,3331.4,3.35789]
[1765375400423,1.86770025,3331.5,3331.4,0.83459]
[1765375400924,1.86770025,3331.5,3331.4,0.15009]
[1765375401616,2.68100503,3331.5,3331.4,0.15009]
[1765375401821,1.13520025,3331.5,3331.4,1.50969]
[1765375402121,1.86770025,3331.5,3331.4,0.83459]
[1765375402524,1.86770025,3331.5,3331.4,1.50969]
[1765375403228,2.68179121,3331.5,3331.4,1.50969]
[1765375403924,0.81749121,3331.5,3331.4,1.50969]
[1765375404125,0.00340025,3331.5,3331.4,1.50969]
[1765375404326,0.44020025,3331.5,3331.4,1.50969]
[1765375405029,0.44020025,3331.5,3331.4,4.71749]
[1765375405423,1.25429121,3331.5,3331.4,4.71749]
[1765375405630,0.44020025,3331.5,3331.4,4.71749]
[1765375406231,0.00340025,3331.5,3331.4,4.71749]
[1765375408032,1.14060025,3331.5,3331.4,4.71749]
[1765375408233,0.00340025,3331.5,3331.4,4.71749]
[1765375408533,1.14060025,3331.5,3331.4,4.71749]
[1765375409031,1.86280025,3331.5,3331.4,4.04239]
[1765375409327,2.6713593,3331.5,3331.4,4.04239]
[1765375409732,2.6713593,3331.5,3331.4,3.35789]
[1765375411233,2.6713593,3331.5,3331.4,4.04629]
[1765375411631,2.6713593,3331.5,3331.4,3.35789]
[1765375412132,1.2369593,3331.5,3331.4,4.73249]
[1765375412527,0.42840025,3331.5,3331.4,4.73249]
[1765375413635,1.13080025,3331.5,3331.4,4.73249]
[1765375413828,1.9393593,3331.5,3331.4,4.73249]
[1765375414634,2.6687593,3331.5,3331.4,4.73249]
[1765375415035,1.9393593,3331.5,3331.4,4.73249]
[1765375415828,1.2369593,3331.5,3331.4,4.73249]
[1765375416429,0.42840025,3331.5,3331.4,4.73249]
[1765375416830,0.00340025,3331.5,3331.4,4.73249]
[1765375418638,0.44540025,3331.5,3331.4,4.73249]
[1765375419139,0.00340025,3331.5,3331.4,4.73249]
[1765375426440,0.00449944,3331.8,3331.7,1.52467]
[1765375426744,0.00449944,3331.8,3331.7,2.98947838]
[1765375427340,0.00727855,3331.8,3331.7,2.98947838]
[1765375428845,1.19455287,3332.5,3332.4,1.51024]
[1765375429243,0.4053,3332.5,3332.4,1.51024]
[1765375429746,0.40816021,3332.5,3332.4,1.51286056]
[1765375430849,1.83996021,3332.5,3332.4,1.51286056]
[1765375431146,1.11056021,3332.5,3332.4,1.51286056]
[1765375431648,1.83996021,3332.5,3332.4,1.51286056]
[1765375432544,1.11056021,3332.5,3332.4,1.51286056]
[1765375432746,0.40816021,3332.5,3332.4,1.51286056]
[1765375434151,0.00286021,3332.5,3332.4,1.51286056]
[1765375434354,0.00286021,3332.5,3332.4,2.97766894]
[1765375434748,0.00286021,3332.5,3332.4,3.013196]
[1765375435253,0.00286021,3332.5,3332.4,13.571196]
[1765375436251,0.00449944,3332.8,3332.7,1.51023]
[1765375436451,0.00449944,3332.8,3332.7,6.21836544]
[1765375437353,0.00792641,3332.8,3332.7,6.21836544]
[1765375440052,0.00792641,3332.8,3332.7,7.71870088]
[1765375440248,0.442,3333.5,3333.4,1.49619]
[1765375440449,1.8671,3333.5,3333.4,1.49619]
[1765375441254,1.87090857,3333.5,3333.4,1.49619]
[1765375442864,1.87090857,3333.5,3333.4,0.14999]
[1765375445852,3.37124401,3333.5,3333.4,0.14999]
[1765375446055,1.4251,3332.9,3332.8,0.15002]
[1765375446256,1.4251,3332.9,3332.8,0.81682]
[1765375446456,1.4251,3332.9,3332.8,1.49622]
[1765375446764,1.4251,3332.9,3332.8,0.81682]
[1765375448557,1.4251,3332.9,3332.8,1.49622]
[1765375448757,0.4215,3333.0,3332.9,1.50882]
[1765375449158,1.8196,3333.0,3332.9,0.82942]
[1765375449360,1.8196,3333.0,3332.9,1.50882]
[1765375449759,1.8196,3333.0,3332.9,3.00915544]
[1765375456069,1.8196,3333.0,3332.9,2.32975544]
[1765375456270,1.8196,3333.0,3332.9,3.00915544]
[1765375458075,4.6059,3333.4,3333.3,1.3588]
[1765375458367,5.38672673,3333.4,3333.3,0.8294]
[1765375458562,2.17892673,3333.4,3333.3,0.8294]
[1765375458958,2.17892673,3333.4,3333.3,0.15]
[1765375460863,1.3981,3332.8,3332.7,3.2078]
[1765375461174,1.3981,3332.7,3332.6,0.15003]
[1765375463475,1.3981,3332.7,3332.6,0.82943]